bitfinex-derivatives/quotes_BTCF0:USTF0_20250709
["timestamp","ask_amount","ask_price","bid_price","bid_amount"]
[1752086495064,1.50890427,109500.0,109490.0,0.4276]
[1752086495265,1.57220427,109500.0,109490.0,0.4276]
[1752086495668,1.59220427,109500.0,109490.0,0.4276]
[1752086497072,1.59220427,109500.0,109490.0,0.0668]
[1752086497368,2.33185001,109500.0,109490.0,0.004]
[1752086500671,2.27185001,109500.0,109490.0,0.004]
[1752086501260,0.1826378,109490.0,109480.0,0.00182673]
[1752086501465,1.32034007,109490.0,109480.0,0.00182673]
[1752086501674,1.42312611,109490.0,109480.0,0.00182673]
[1752086502363,1.34102883,109490.0,109480.0,0.00182673]
[1752086502564,1.34102883,109490.0,109480.0,0.00382673]
[1752086502767,0.87744279,109490.0,109480.0,0.00382673]
[1752086503277,1.90764279,109490.0,109480.0,0.00382673]
[1752086504268,1.90864279,109490.0,109480.0,0.00182673]
[1752086504472,2.00434468,109490.0,109480.0,0.00182673]
[1752086504967,1.36494468,109490.0,109480.0,0.00182673]
[1752086505268,2.00430468,109490.0,109480.0,0.00282673]
[1752086505566,1.66430468,109490.0,109480.0,0.00282673]
[1752086505872,2.01430468,109490.0,109480.0,0.00282673]
[1752086506768,1.98430468,109490.0,109480.0,0.00282673]
[1752086508068,2.06640196,109490.0,109480.0,0.00282673]
[1752086508379,1.98430468,109490.0,109480.0,0.00282673]
[1752086509169,1.98530468,109490.0,109480.0,0.00182673]
[1752086509568,1.70181969,109490.0,109480.0,0.00182673]
[1752086509881,1.98530468,109490.0,109480.0,0.00182673]
[1752086510676,1.39594468,109490.0,109480.0,0.00182673]
[1752086510875,2.03526468,109490.0,109480.0,0.00182673]
[1752086511472,2.02526468,109490.0,109480.0,0.00182673]
[1752086512372,1.74177969,109490.0,109480.0,0.00182673]
[1752086512574,2.02526468,109490.0,109480.0,0.00182673]
[1752086512976,1.38594468,109490.0,109480.0,0.00182673]
[1752086513177,2.02522468,109490.0,109480.0,0.00182673]
[1752086514072,1.66522468,109490.0,109480.0,0.00182673]
[1752086514273,2.02522468,109490.0,109480.0,0.00182673]
[1752086515574,2.04522468,109490.0,109480.0,0.00182673]
[1752086517082,1.02594468,109490.0,109480.0,0.00182673]
[1752086517677,1.66518468,109490.0,109480.0,0.00182673]
[1752086518276,1.02594468,109490.0,109480.0,0.00182673]
[1752086518476,1.66518468,109490.0,109480.0,0.00182673]
[1752086518675,1.74728196,109490.0,109480.0,0.00182673]
[1752086519977,1.10804196,109490.0,109480.0,0.00182673]
[1752086520383,1.74724196,109490.0,109480.0,0.00182673]
[1752086521782,1.66514468,109490.0,109480.0,0.00182673]
[1752086521977,1.7471908,109490.0,109480.0,0.00182673]
[1752086522384,1.66514468,109490.0,109480.0,0.00182673]
[1752086523483,1.77377119,109490.0,109480.0,0.00182673]
[1752086528286,1.75841119,109490.0,109480.0,0.00182673]
[1752086528480,1.64978468,109490.0,109480.0,0.00182673]
[1752086528685,1.73194845,109490.0,109480.0,0.00182673]
[1752086528987,1.73183487,109490.0,109480.0,0.00182673]
[1752086530290,1.6496711,109490.0,109480.0,0.00182673]
[1752086531088,1.75829761,109490.0,109480.0,0.00182673]
[1752086531294,1.47481262,109490.0,109480.0,0.00182673]
[1752086531493,1.75829761,109490.0,109480.0,0.00182673]
[1752086531791,1.73553761,109490.0,109480.0,0.00182673]
[1752086531990,1.75829761,109490.0,109480.0,0.00182673]
[1752086532895,1.6496711,109490.0,109480.0,0.00182673]
[1752086533195,1.36618611,109490.0,109480.0,0.00182673]
[1752086533389,1.6496711,109490.0,109480.0,0.00182673]
[1752086533592,1.75829761,109490.0,109480.0,0.00182673]
[1752086533794,1.6496711,109490.0,109480.0,0.00182673]
[1752086534094,1.75829761,109490.0,109480.0,0.00182673]
[1752086535096,1.6496711,109490.0,109480.0,0.00182673]
[1752086535295,1.75829761,109490.0,109480.0,0.00182673]
[1752086536195,1.6496711,109490.0,109480.0,0.00182673]
[1752086537498,1.75829761,109490.0,109480.0,0.00182673]
[1752086537693,1.75929761,109490.0,109480.0,0.00182673]
[1752086538397,1.76029761,109490.0,109480.0,0.00182673]
[1752086538692,1.6516711,109490.0,109480.0,0.00182673]
[1752086540095,1.76029761,109490.0,109480.0,0.00182673]
[1752086541600,1.47681262,109490.0,109480.0,0.00182673]
[1752086541897,1.76029761,109490.0,109480.0,0.00182673]
[1752086542297,1.73392072,109490.0,109480.0,0.00182673]
[1752086545094,2.10392072,109490.0,109480.0,0.00182673]
[1752086546091,2.09392072,109490.0,109480.0,0.00182673]
[1752086547200,2.07392072,109490.0,109480.0,0.00182673]
[1752086548594,1.9916711,109490.0,109480.0,0.00182673]
[1752086548801,1.70818611,109490.0,109480.0,0.00182673]
[1752086548991,1.9916711,109490.0,109480.0,0.00182673]
[1752086550796,1.9379911,109490.0,109480.0,0.00182673]
[1752086550999,1.00233472,109490.0,109480.0,0.06582673]
[1752086551200,1.92449971,109490.0,109480.0,0.06582673]
[1752086551396,1.28581971,109490.0,109480.0,0.08165673]
[1752086551702,1.48144921,109490.0,109480.0,0.1225964]
[1752086552299,1.48144921,109490.0,109480.0,0.06582673]
[1752086552696,1.87394921,109490.0,109480.0,0.03282673]
[1752086552901,1.90594921,109490.0,109480.0,0.04671649]
[1752086553698,2.010153,109490.0,109480.0,0.01571649]
[1752086553904,2.0924035,109490.0,109480.0,0.01571649]
[1752086554197,2.1024035,109490.0,109480.0,0.01571649]
[1752086554707,2.2024035,109490.0,109480.0,0.01576024]
[1752086555008,0.1826545,109480.0,109470.0,0.0018269]
[1752086555299,1.82737301,109480.0,109470.0,1e-07]
[1752086555507,3.78390091,109480.0,109470.0,1e-07]
[1752086555705,3.14522091,109480.0,109470.0,1e-07]
[1752086556006,3.78390091,109480.0,109470.0,1e-07]
[1752086556312,3.76145091,109480.0,109470.0,1e-07]
[1752086556503,3.76245091,109480.0,109470.0,1e-07]
[1752086557397,3.76345091,109480.0,109470.0,1e-07]
[1752086557604,0.1826879,109460.0,109450.0,0.0636]
[1752086557899,1.8324369,109460.0,109450.0,0.0636]
[1752086558107,1.1937969,109460.0,109450.0,0.0636]
[1752086558294,1.54895191,109460.0,109450.0,0.0636]
[1752086558500,1.8324369,109460.0,109450.0,0.0636]
[1752086558902,1.8324369,109460.0,109450.0,0.0666]
[1752086559405,1.7944669,109460.0,109450.0,0.0666]
[1752086559601,1.5084269,109460.0,109450.0,0.0666]
[1752086559799,1.8684269,109460.0,109450.0,0.0686]
[1752086560308,1.94194356,109460.0,109450.0,0.0686]
[1752086560502,1.01981857,109460.0,109450.0,0.0686]
[1752086560696,1.66881857,109460.0,109450.0,0.0686]
[1752086560896,1.95230356,109460.0,109450.0,0.0686]
[1752086563710,1.95330356,109460.0,109450.0,0.0686]
[1752086567915,1.98350356,109460.0,109450.0,0.0686]
[1752086568200,2.01650356,109460.0,109450.0,0.0686]
[1752086570716,1.97650356,109460.0,109450.0,0.0686]
[1752086574612,1.24381857,109460.0,109450.0,0.72906499]
[1752086574815,0.60505857,109460.0,109450.0,0.91176959]
[1752086575010,0.60505857,109460.0,109450.0,0.72906499]
[1752086575215,0.91381857,109460.0,109450.0,0.72906499]
[1752086575414,0.92991857,109460.0,109450.0,0.44558]
[1752086575721,0.91381857,109460.0,109450.0,0.91176959]
[1752086576221,0.92991857,109460.0,109450.0,0.72906499]
[1752086576721,0.92991857,109460.0,109450.0,0.91176959]
[1752086577021,0.92991857,109460.0,109450.0,0.72906499]
[1752086577223,0.92991857,109460.0,109450.0,0.91176959]
[1752086577519,0.92991857,109460.0,109450.0,0.72906499]
[1752086577916,0.27505857,109460.0,109450.0,1.36017959]
[1752086578119,0.91381857,109460.0,109450.0,1.34448959]
[1752086578721,0.91381857,109460.0,109450.0,1.3853762]
[1752086578918,0.92991857,109460.0,109450.0,1.3853762]
[1752086579220,0.29115857,109460.0,109450.0,1.09448959]
[1752086579408,0.92991857,109460.0,109450.0,1.1353762]
[1752086579607,0.29115857,109460.0,109450.0,1.1353762]
[1752086579811,0.89496456,109460.0,109450.0,1.1510662]
[1752086580017,0.89496456,109460.0,109450.0,1.1353762]
[1752086580414,0.91106456,109460.0,109450.0,1.1353762]
[1752086580921,0.89496456,109460.0,109450.0,1.1353762]
[1752086581519,0.91106456,109460.0,109450.0,1.1353762]
[1752086582626,0.91106456,109460.0,109450.0,0.9526562]
[1752086583011,0.91106456,109460.0,109450.0,0.66917121]
[1752086583522,0.91106456,109460.0,109450.0,0.72346472]
[1752086583724,0.91106456,109460.0,109450.0,1.00694971]
[1752086584128,0.91106456,109460.0,109450.0,0.72346472]
[1752086584326,0.93502456,109460.0,109450.0,0.72346472]
[1752086584533,0.93502456,109460.0,109450.0,0.54076012]
[1752086584715,0.93502456,109460.0,109450.0,0.10948661]
[1752086584716,1.57850955,109460.0,109450.0,0.10948661]
[1752086585121,1.61080955,109460.0,109450.0,0.10948661]
[1752086585415,1.32732456,109460.0,109450.0,0.10948661]
[1752086585618,1.59080955,109460.0,109450.0,0.10948661]
[1752086586225,0.96732456,109460.0,109450.0,0.12566661]
[1752086586427,1.58080955,109460.0,109450.0,0.12566661]
[1752086586729,1.58080955,109460.0,109450.0,0.10948661]
[1752086587232,1.61170955,109460.0,109450.0,0.10948661]
[1752086588227,1.59170955,109460.0,109450.0,0.10948661]
[1752086588425,1.59170955,109460.0,109450.0,0.12613661]
[1752086588630,1.59170955,109460.0,109450.0,0.09403661]
[1752086589932,1.59170955,109460.0,109450.0,0.09410078]
[1752086590336,1.30822456,109460.0,109450.0,0.09410078]
[1752086590629,1.60170955,109460.0,109450.0,0.09410078]
[1752086592625,0.96294955,109460.0,109450.0,0.09410078]
[1752086592924,1.60166955,109460.0,109450.0,0.09410078]
[1752086593223,1.59166955,109460.0,109450.0,0.09410078]
[1752086594230,1.65166955,109460.0,109450.0,0.09410078]
[1752086594929,1.65162955,109460.0,109450.0,0.09410078]
[1752086595125,1.36814456,109460.0,109450.0,0.09410078]
[1752086595733,0.67704456,109460.0,109450.0,0.09410078]
[1752086596031,1.31572456,109460.0,109450.0,0.12540078]
[1752086596534,1.31572456,109460.0,109450.0,0.30810538]
[1752086596835,1.31572456,109460.0,109450.0,0.59159037]
[1752086597131,1.31572456,109460.0,109450.0,0.12540078]
[1752086597332,0.67704456,109460.0,109450.0,0.66890538]
[1752086597634,0.93572456,109460.0,109450.0,1.00668388]
[1752086598730,0.93572456,109460.0,109450.0,0.7830285]
[1752086598924,0.93572456,109460.0,109450.0,0.9657331]
[1752086599126,1.29572456,109460.0,109450.0,0.9657331]
[1752086599325,1.24572456,109460.0,109450.0,0.9657331]
[1752086599534,0.93572456,109460.0,109450.0,0.9657331]
[1752086599734,1.25572456,109460.0,109450.0,0.9657331]
[1752086600537,0.93572456,109460.0,109450.0,0.9657331]
[1752086601933,0.93568456,109460.0,109450.0,1.04733257]
[1752086602433,0.29704456,109460.0,109450.0,1.04733257]
[1752086602635,0.93568456,109460.0,109450.0,1.04733257]
[1752086603323,0.27230456,109460.0,109450.0,2.32461257]
[1752086603527,0.27230456,109460.0,109450.0,2.27031906]
[1752086603730,0.27230456,109460.0,109450.0,2.28600906]
[1752086604137,0.27230456,109460.0,109450.0,2.34060728]
[1752086604339,0.27230456,109460.0,109450.0,2.28600906]
[1752086604639,0.25620456,109460.0,109450.0,2.28600906]
[1752086605338,0.25620456,109460.0,109450.0,2.29600906]
[1752086606434,0.25620456,109460.0,109450.0,2.47872906]
[1752086608033,0.25620456,109460.0,109450.0,2.51844711]
[1752086608636,0.1826879,109460.0,109450.0,2.52741471]
[1752086610340,0.1826879,109460.0,109450.0,1.25013471]
[1752086610641,0.1826879,109460.0,109450.0,1.88869471]
[1752086611040,0.1826879,109460.0,109450.0,1.88870241]
[1752086611740,0.1826879,109460.0,109450.0,1.872047]
[1752086612132,0.1826879,109460.0,109450.0,1.58856201]
[1752086612333,0.1826879,109460.0,109450.0,1.872047]
[1752086612942,0.2739976,109480.0,109470.0,0.1826712]
[1752086613144,0.1826545,109480.0,109470.0,2.63170265]
[1752086613350,0.1987945,109480.0,109470.0,2.45678396]
[1752086613753,0.1826545,109480.0,109470.0,2.45678396]
[1752086614240,0.1987945,109480.0,109470.0,2.45678396]
[1752086614445,0.1997945,109480.0,109470.0,2.48522477]
[1752086615050,0.2007945,109480.0,109470.0,2.39446766]
[1752086615543,0.2007945,109480.0,109470.0,2.25747236]
[1752086615940,0.2320945,109480.0,109470.0,2.25747236]
[1752086616744,0.2568345,109480.0,109470.0,2.25747236]
[1752086618448,0.2558345,109480.0,109470.0,2.25747236]
[1752086618749,0.2558345,109480.0,109470.0,2.21657653]
[1752086619141,0.2875345,109480.0,109470.0,2.21657653]
[1752086620544,0.2875345,109480.0,109470.0,2.20657653]
[1752086620746,0.2875345,109480.0,109470.0,2.21657653]
[1752086621350,0.2627945,109480.0,109470.0,2.21657653]
[1752086621748,0.2627945,109480.0,109470.0,1.93309154]
[1752086622048,0.2627945,109480.0,109470.0,2.21657653]
[1752086623650,0.1987945,109480.0,109470.0,2.21657653]
[1752086623850,0.1987945,109480.0,109470.0,2.28915649]
[1752086624045,0.1987945,109480.0,109470.0,2.30484649]
[1752086624247,0.1987945,109480.0,109470.0,2.28915649]
[1752086625649,0.1987945,109480.0,109470.0,2.29915649]
[1752086627949,0.3196378,109490.0,109480.0,0.1826545]
[1752086628153,0.3196378,109490.0,109480.0,0.91744949]
[1752086628353,0.3196378,109490.0,109480.0,0.93313949]
[1752086628654,0.3196378,109490.0,109480.0,0.97286713]
[1752086629155,0.3196378,109490.0,109480.0,0.96286713]
[1752086629758,0.3196378,109490.0,109480.0,0.97286713]
[1752086630558,0.3196378,109490.0,109480.0,0.96286713]
[1752086630959,0.3196378,109490.0,109480.0,0.97286713]
[1752086631160,0.3196378,109490.0,109480.0,0.98219781]
[1752086631561,0.1826518,109490.0,109480.0,0.98219781]
[1752086631960,0.1826518,109490.0,109480.0,1.07762141]
[1752086632460,0.1826518,109490.0,109480.0,1.03672558]
[1752086634364,0.1826518,109490.0,109480.0,1.11851724]
[1752086635564,0.1826518,109490.0,109480.0,1.10851724]
[1752086635865,0.1826518,109490.0,109480.0,1.12851724]
[1752086637866,0.1826518,109490.0,109480.0,1.04672558]
[1752086638366,0.1826518,109490.0,109480.0,1.0373949]
[1752086638567,0.1826518,109490.0,109480.0,1.07822738]
[1752086640561,0.1826518,109490.0,109480.0,1.0173949]
[1752086640761,0.1826518,109490.0,109480.0,1.0373949]
[1752086641162,0.1826518,109490.0,109480.0,1.07822742]
[1752086641468,0.1826518,109490.0,109480.0,1.0373949]
[1752086641668,0.1826518,109490.0,109480.0,1.07822399]
[1752086642876,0.21793108,109490.0,109480.0,0.762839]
[1752086643065,0.24913108,109490.0,109480.0,0.96576726]
[1752086643264,0.24913108,109490.0,109480.0,1.06252057]
[1752086644366,0.24913108,109490.0,109480.0,1.05252057]
[1752086645656,0.24913108,109490.0,109480.0,1.06252057]
[1752086646368,0.23301108,109490.0,109480.0,1.04631057]
[1752086646666,0.21793108,109490.0,109480.0,1.04631057]
[1752086647064,0.2295718,109490.0,109480.0,1.04631057]
[1752086647264,0.2596718,109490.0,109480.0,1.04631057]
[1752086648569,0.2596718,109490.0,109480.0,1.08727212]
[1752086649771,0.2596718,109490.0,109480.0,0.80378713]
[1752086650072,0.2845418,109490.0,109480.0,0.95698046]
[1752086650374,0.2845418,109490.0,109480.0,1.94941547]
[1752086651171,0.2845418,109490.0,109480.0,1.90970227]
[1752086651568,0.56802679,109490.0,109480.0,0.45112777]
[1752086651768,0.56802679,109490.0,109480.0,0.07452777]
[1752086651964,1.16270679,109490.0,109480.0,0.04083556]
[1752086652169,0.1826546,109480.0,109470.0,0.04083556]
[1752086652369,0.52833959,109480.0,109470.0,0.05083556]
[1752086652575,0.52833959,109480.0,109470.0,0.04083556]
[1752086655670,0.56945959,109480.0,109470.0,0.04083556]
[1752086655978,0.2859746,109480.0,109470.0,0.04083556]
[1752086656164,0.2859746,109480.0,109470.0,0.90104678]
[1752086656367,0.2859746,109480.0,109470.0,0.88524678]
[1752086656967,0.2859746,109480.0,109470.0,0.90104678]
[1752086658579,0.2859746,109480.0,109470.0,0.86021122]
[1752086660977,0.2859746,109480.0,109470.0,0.90104678]
[1752086661380,0.2859746,109480.0,109470.0,0.86021122]
[1752086662680,0.1826546,109480.0,109470.0,0.86021122]
[1752086662977,0.1826546,109480.0,109470.0,0.98173678]
[1752086663282,0.1989046,109480.0,109470.0,0.96604678]
[1752086664074,0.1989046,109480.0,109470.0,0.96704678]
[1752086664279,0.1989046,109480.0,109470.0,0.96904678]
[1752086664481,0.1826546,109480.0,109470.0,0.98473678]
[1752086667287,0.1989046,109480.0,109470.0,0.96904678]
[1752086667580,0.1989046,109480.0,109470.0,0.68556179]
[1752086667785,0.1989046,109480.0,109470.0,0.96904678]
[1752086668587,0.1989046,109480.0,109470.0,1.02357455]
[1752086670985,0.1989046,109480.0,109470.0,0.98273899]
[1752086671392,0.1989046,109480.0,109470.0,1.02358846]
[1752086671689,0.1989046,109480.0,109470.0,1.02358934]
[1752086672694,0.1989046,109480.0,109470.0,0.98273899]
[1752086672900,0.1989046,109480.0,109470.0,1.02359134]
[1752086673098,0.1989046,109480.0,109470.0,1.03928134]
[1752086673099,0.1826546,109480.0,109470.0,1.03928134]
[1752086673599,0.1826546,109480.0,109470.0,0.99842899]
[1752086674100,0.1826546,109480.0,109470.0,0.94390122]
[1752086675096,0.1826546,109480.0,109470.0,1.03921726]
[1752086675402,0.1826546,109480.0,109470.0,0.99836753]
[1752086676302,0.1989046,109480.0,109470.0,0.98267753]
[1752086677604,0.2237746,109480.0,109470.0,0.51652134]
[1752086677806,0.57115959,109480.0,109470.0,0.49239251]
[1752086678099,0.93195959,109480.0,109470.0,0.04387134]
[1752086678303,0.93195959,109480.0,109470.0,0.003]
[1752086678604,1.56967959,109480.0,109470.0,0.003]
[1752086679197,1.56967959,109480.0,109470.0,0.04263269]
[1752086679905,1.56967959,109480.0,109470.0,0.03963269]
[1752086681503,1.20887959,109480.0,109470.0,0.03963269]
[1752086682002,1.56967959,109480.0,109470.0,0.03963269]
[1752086684202,1.20887959,109480.0,109470.0,0.03963269]
[1752086684903,1.56967959,109480.0,109470.0,0.03963269]
[1752086687904,1.55236959,109480.0,109470.0,0.03963269]
[1752086689405,1.19156959,109480.0,109470.0,0.03963269]
[1752086690410,1.55236959,109480.0,109470.0,0.03963269]
[1752086691405,1.52855959,109480.0,109470.0,0.03963269]
[1752086691606,1.55236959,109480.0,109470.0,0.08050403]
[1752086692906,1.19156959,109480.0,109470.0,0.08050403]
[1752086693911,0.55384959,109480.0,109470.0,0.08050403]
[1752086694111,1.20753959,109480.0,109470.0,0.08050403]
[1752086695108,0.9240546,109480.0,109470.0,0.08050403]
[1752086695312,1.20753959,109480.0,109470.0,0.08050403]
[1752086696917,1.20753959,109480.0,109470.0,0.03963269]
[1752086700811,1.56833959,109480.0,109470.0,0.03963269]
[1752086703310,1.2848546,109480.0,109470.0,0.03963269]
[1752086703508,1.56833959,109480.0,109470.0,0.03963269]
[1752086706011,1.83569458,109480.0,109470.0,9e-08]
[1752086706310,1.91776427,109480.0,109470.0,9e-08]
[1752086706513,1.63427928,109480.0,109470.0,9e-08]
[1752086707004,1.63427928,109480.0,109450.0,0.80612264]
[1752086707005,1.49728978,109480.0,109450.0,0.80612264]
[1752086707201,0.1826879,109460.0,109450.0,0.55263765]
[1752086707402,0.8200079,109460.0,109450.0,0.56917765]
[1752086708418,0.8200079,109460.0,109450.0,0.85266264]
[1752086708713,0.8200079,109460.0,109450.0,0.79819633]
[1752086709411,0.8200079,109460.0,109450.0,0.78165633]
[1752086709614,0.8610479,109460.0,109450.0,0.79823633]
[1752086709807,0.8610479,109460.0,109450.0,0.80023633]
[1752086710006,0.8610479,109460.0,109450.0,0.51675134]
[1752086710315,0.8610479,109460.0,109450.0,0.80023633]
[1752086710614,0.87039422,109460.0,109450.0,0.80123633]
[1752086711214,0.87039422,109460.0,109450.0,0.98394093]
[1752086711408,0.8200079,109460.0,109450.0,0.95394093]
[1752086711602,0.1826879,109460.0,109450.0,0.95294093]
[1752086711816,0.2237279,109460.0,109450.0,0.73036499]
[1752086712816,0.2237279,109460.0,109450.0,0.91306959]
[1752086713213,0.23266009,109460.0,109450.0,0.91306959]
[1752086713516,0.2237279,109460.0,109450.0,0.91306959]
[1752086716020,0.29690812,109460.0,109450.0,0.91306959]
[1752086717418,0.29690812,109460.0,109450.0,0.95397742]
[1752086718114,0.29690812,109460.0,109450.0,0.99347111]
[1752086718714,0.29690812,109460.0,109450.0,1.00702959]
[1752086723424,0.27249812,109460.0,109450.0,1.00702959]
[1752086723822,0.27249812,109460.0,109450.0,1.02271959]
[1752086725324,0.25586812,109460.0,109450.0,1.02271959]
[1752086726021,0.25586812,109460.0,109450.0,1.04995275]
[1752086728625,0.25586812,109460.0,109450.0,1.34455275]
[1752086735429,0.25586812,109460.0,109450.0,1.06106776]
[1752086735630,0.25586812,109460.0,109450.0,1.34455275]
[1752086737626,0.25586812,109460.0,109450.0,1.06106776]
[1752086737925,0.25586812,109460.0,109450.0,1.34455275]
[1752086740335,0.25586812,109460.0,109450.0,1.06106776]
[1752086740639,0.25586812,109460.0,109450.0,1.34455275]
[1752086742332,0.25586812,109460.0,109450.0,1.32797275]
[1752086742724,0.27098812,109460.0,109450.0,1.02879776]
[1752086742926,0.27098812,109460.0,109450.0,0.96229776]
[1752086743239,0.33528812,109460.0,109450.0,1.59881776]
[1752086743538,0.33528812,109460.0,109450.0,1.88230275]
[1752086744537,0.33528812,109460.0,109450.0,1.59881776]
[1752086744835,0.33528812,109460.0,109450.0,1.93683171]
[1752086745226,0.33528812,109460.0,109450.0,1.88230275]
[1752086745734,0.35933812,109460.0,109450.0,1.88230275]
[1752086746335,0.35933812,109460.0,109450.0,1.59881776]
[1752086746541,0.35933812,109460.0,109450.0,1.30421776]
[1752086746839,0.35933812,109460.0,109450.0,1.58770275]
[1752086747229,0.32016812,109460.0,109450.0,1.58770275]
[1752086747431,0.33528812,109460.0,109450.0,1.58770275]
[1752086747633,0.33528812,109460.0,109450.0,1.58810259]
[1752086748140,0.33528812,109460.0,109450.0,1.3046176]
[1752086748341,0.33528812,109460.0,109450.0,1.58810259]
[1752086753444,0.2621079,109460.0,109450.0,1.58810259]
[1752086753946,0.2621079,109460.0,109450.0,1.64810259]
[1752086755544,0.1978079,109460.0,109450.0,1.64810259]
[1752086755743,0.1826879,109460.0,109450.0,1.64810259]
[1752086755947,0.1826879,109460.0,109450.0,1.56640312]
[1752086756152,0.40769014,109470.0,109460.0,0.1826922]
[1752086756342,0.42281014,109470.0,109460.0,1.06607027]
[1752086756549,0.39876014,109470.0,109460.0,1.06607027]
[1752086758751,0.39876014,109470.0,109460.0,1.0251544]
[1752086759048,0.38364014,109470.0,109460.0,1.0251544]
[1752086759250,0.39876014,109470.0,109460.0,1.0251544]
[1752086760153,0.39876014,109470.0,109460.0,0.74166941]
[1752086760349,0.39876014,109470.0,109460.0,1.0406044]
[1752086760557,0.39876014,109470.0,109460.0,1.0251544]
[1752086760849,0.33496014,109470.0,109460.0,1.0251544]
[1752086762151,0.36816014,109470.0,109460.0,1.0251544]
[1752086762551,0.35304014,109470.0,109460.0,1.0251544]
[1752086762755,0.36816014,109470.0,109460.0,1.0251544]
[1752086764759,0.36816014,109470.0,109460.0,0.74166941]
[1752086764955,0.36816014,109470.0,109460.0,1.0406044]
[1752086768265,0.44816014,109470.0,109460.0,1.0406044]
[1752086768669,0.44816014,109470.0,109460.0,0.99968054]
[1752086770568,0.36816014,109470.0,109460.0,0.99968054]
[1752086770765,0.46816014,109470.0,109460.0,0.99968054]
[1752086771169,0.49238014,109470.0,109460.0,0.49711709]
[1752086771464,0.52418014,109470.0,109460.0,1.00790443]
[1752086773463,0.52418014,109470.0,109460.0,0.96697634]
[1752086774064,0.52418014,109470.0,109460.0,0.68349135]
[1752086774365,0.50418014,109470.0,109460.0,0.96697634]
[1752086775568,0.42418014,109470.0,109460.0,0.96697634]
[1752086775769,0.51418014,109470.0,109460.0,0.96697634]
[1752086777369,0.48996014,109470.0,109460.0,0.96697634]
[1752086777570,0.48996014,109470.0,109460.0,0.99817634]
[1752086779176,0.47996014,109470.0,109460.0,0.99817634]
[1752086779874,0.50418014,109470.0,109460.0,0.99817634]
[1752086780573,0.42418014,109470.0,109460.0,0.99817634]
[1752086780774,0.43418014,109470.0,109460.0,0.99817634]
[1752086781170,0.43418014,109470.0,109460.0,1.08001607]
[1752086782779,0.43418014,109470.0,109460.0,1.36455802]
[1752086783072,0.40996014,109470.0,109460.0,0.79653108]
[1752086783277,0.40996014,109470.0,109460.0,1.36455802]
[1752086785775,0.39996014,109470.0,109460.0,1.36455802]
[1752086786480,0.33496014,109470.0,109460.0,1.36455802]
[1752086786672,0.18280824,109470.0,109460.0,1.60970167]
[1752086787073,0.19833824,109470.0,109460.0,1.3088283]
[1752086787273,0.19833824,109470.0,109460.0,1.36341073]
[1752086787480,0.19833824,109470.0,109460.0,1.3088283]
[1752086787981,0.19833824,109470.0,109460.0,1.2945482]
[1752086788884,0.19833824,109470.0,109460.0,1.0104768]
[1752086789683,0.19833824,109470.0,109460.0,0.72652126]
[1752086789880,0.19833824,109470.0,109460.0,0.49851326]
[1752086790080,0.91479378,109470.0,109460.0,0.12209747]
[1752086790585,0.93901378,109470.0,109460.0,0.12209747]
[1752086790784,0.35505824,109470.0,109460.0,0.12209747]
[1752086791680,0.35505824,109470.0,109460.0,0.40605301]
[1752086792084,0.35505824,109470.0,109460.0,0.44698965]
[1752086792282,0.35505824,109470.0,109460.0,0.16303411]
[1752086795288,0.36505824,109470.0,109460.0,0.16303411]
[1752086796191,0.35505824,109470.0,109460.0,0.16303411]
[1752086797994,0.35505824,109470.0,109460.0,0.44698965]
[1752086798391,0.35505824,109470.0,109460.0,0.4327088]
[1752086798690,0.35505824,109470.0,109460.0,0.469297]
[1752086798889,0.35505824,109470.0,109460.0,0.76851254]
[1752086799392,0.35505824,109470.0,109460.0,0.75325254]
[1752086799790,0.37386578,109470.0,109460.0,0.75325254]
[1752086800097,0.37386578,109470.0,109460.0,0.76851254]
[1752086800408,0.37386578,109470.0,109460.0,0.75325254]
[1752086800693,0.37386578,109470.0,109460.0,0.76851254]
[1752086801290,0.38386578,109470.0,109460.0,0.484557]
[1752086801495,0.38386578,109470.0,109460.0,0.7685124]
[1752086803697,0.38386578,109470.0,109460.0,0.47027557]
[1752086803896,0.38386578,109470.0,109460.0,0.75423111]
[1752086804090,0.38386578,109470.0,109460.0,0.74084571]
[1752086804290,0.38386578,109470.0,109460.0,0.75512733]
[1752086804594,0.90807132,109470.0,109460.0,0.46931124]
[1752086804796,0.93735132,109470.0,109460.0,0.10851124]
[1752086805002,0.65339578,109470.0,109460.0,0.10851124]
[1752086805396,0.93735132,109470.0,109460.0,0.10851124]
[1752086805596,0.95735132,109470.0,109460.0,0.10851124]
[1752086805796,0.67339578,109470.0,109460.0,0.10851124]
[1752086807402,0.67339578,109470.0,109460.0,0.11007136]
[1752086807908,0.95735132,109470.0,109460.0,0.11007136]
[1752086808099,0.95735132,109470.0,109460.0,0.09578974]
[1752086808100,0.91807132,109470.0,109460.0,0.09578974]
[1752086808305,0.95735132,109470.0,109460.0,0.11008878]
[1752086808702,0.67339578,109470.0,109460.0,0.16466422]
[1752086809205,0.37339578,109470.0,109460.0,0.52546422]
[1752086809707,0.30339578,109470.0,109460.0,0.52546422]
[1752086809906,0.65339578,109470.0,109460.0,0.52546422]
[1752086810409,0.65339578,109470.0,109460.0,0.82467976]
[1752086810599,0.68339578,109470.0,109460.0,0.80941976]
[1752086810801,0.96746699,109470.0,109460.0,0.82479543]
[1752086811098,0.96746699,109470.0,109460.0,0.82477716]
[1752086812506,0.68339578,109470.0,109460.0,0.82477716]
[1752086812693,0.96746699,109470.0,109460.0,0.82477716]
[1752086813904,0.96746699,109470.0,109460.0,0.8247764]
[1752086814209,0.91746699,109470.0,109460.0,0.8247764]
[1752086814410,0.91746699,109470.0,109460.0,0.54070519]
[1752086814709,0.91746699,109470.0,109460.0,0.8247764]
[1752086815611,0.94746699,109470.0,109460.0,0.8247764]
[1752086816503,0.66339578,109470.0,109460.0,0.8247764]
[1752086816704,0.94746699,109470.0,109460.0,0.8247764]
[1752086818001,0.94746699,109470.0,109460.0,0.82478136]
[1752086818308,0.94746699,109470.0,109460.0,0.54071015]
[1752086818802,0.94746699,109470.0,109460.0,0.78384581]
[1752086819309,0.66339578,109470.0,109460.0,0.86568554]
[1752086819607,0.91746699,109470.0,109460.0,0.85042554]
[1752086819806,0.91746699,109470.0,109460.0,0.86568554]
[1752086820006,0.91746699,109470.0,109460.0,0.78384581]
[1752086820209,0.91746699,109470.0,109460.0,0.86568554]
[1752086820404,0.66746699,109470.0,109460.0,0.86568554]
[1752086820604,0.66746699,109470.0,109460.0,1.09831702]
[1752086821107,0.30580578,109470.0,109460.0,1.28100502]
[1752086821307,0.94084578,109470.0,109460.0,1.39284475]
[1752086821506,0.95593578,109470.0,109460.0,1.39284475]
[1752086821712,0.95593578,109470.0,109460.0,1.39284421]
[1752086822006,0.91665578,109470.0,109460.0,1.37758421]
[1752086822212,0.93174578,109470.0,109460.0,1.37758421]
[1752086823212,0.29670578,109470.0,109460.0,1.37758421]
[1752086825615,0.21670578,109470.0,109460.0,1.37758421]
[1752086826414,0.21670578,109470.0,109460.0,1.29574448]
[1752086828307,0.20161578,109470.0,109460.0,1.39327421]
[1752086828507,0.20161578,109470.0,109460.0,1.33869877]
[1752086828708,0.20161578,109470.0,109460.0,1.29808454]
[1752086829306,0.20161578,109470.0,109460.0,1.58215575]